[Event "Betsys MČR v online bleskovém šachu 2021"]
[Site "Chess.com"]
[Date "2021.04.17"]
[Round "1"]
[White "jarosymon"]
[Black "NeumanPetr"]
[Result "0-1"]
[WhiteElo "1781"]
[BlackElo "2505"]
[TimeControl "180+1"]
[EndTime "9:07:58 PDT"]
[Termination "Uživatel NeumanPetr zvítězil na čas"]

1. e4 {[%clk 0:02:54.5]} 1... c5 {[%clk 0:02:59.8]} 2. b4 {[%clk 0:02:52.8]}
2... cxb4 {[%clk 0:02:56.7]} 3. d4 {[%clk 0:02:52]} 3... d5 {[%clk 0:02:50.1]}
4. exd5 {[%clk 0:02:51.4]} 4... Nf6 {[%clk 0:02:47]} 5. a3 {[%clk 0:02:50.8]}
5... Nxd5 {[%clk 0:02:30.9]} 6. axb4 {[%clk 0:02:49.6]} 6... Nxb4 {[%clk
0:02:29.3]} 7. c3 {[%clk 0:02:44.9]} 7... N4c6 {[%clk 0:02:27.5]} 8. Nf3 {[%clk
0:02:37.6]} 8... e6 {[%clk 0:02:22.6]} 9. Ba3 {[%clk 0:02:36.6]} 9... Bxa3
{[%clk 0:02:21.9]} 10. Nxa3 {[%clk 0:02:36.4]} 10... b6 {[%clk 0:02:14.8]} 11.
Bd3 {[%clk 0:02:33.1]} 11... Bb7 {[%clk 0:02:15.3]} 12. O-O {[%clk 0:02:31.9]}
12... O-O {[%clk 0:02:05.6]} 13. Nc4 {[%clk 0:02:28.6]} 13... h6 {[%clk
0:01:54.5]} 14. Qe2 {[%clk 0:02:22.4]} 14... Ne7 {[%clk 0:01:53.2]} 15. Nce5
{[%clk 0:02:11.4]} 15... Nd7 {[%clk 0:01:49]} 16. Be4 {[%clk 0:01:59.6]} 16...
Bxe4 {[%clk 0:01:46.3]} 17. Qxe4 {[%clk 0:01:58.3]} 17... Nxe5 {[%clk
0:01:38.9]} 18. Nxe5 {[%clk 0:01:57.4]} 18... Qc7 {[%clk 0:01:34.3]} 19. Rac1
{[%clk 0:01:46.3]} 19... Rac8 {[%clk 0:01:28.3]} 20. g3 {[%clk 0:01:30.6]} 20...
Rfd8 {[%clk 0:01:23.6]} 21. Qf3 {[%clk 0:01:21.6]} 21... Nc6 {[%clk 0:01:19.8]}
22. Ng4 {[%clk 0:00:55.1]} 22... Ne7 {[%clk 0:01:04.3]} 23. Ne5 {[%clk 0:00:52]}
23... Nd5 {[%clk 0:00:56.5]} 24. c4 {[%clk 0:00:47.5]} 24... Nf6 {[%clk
0:00:55.9]} 25. Rfd1 {[%clk 0:00:19.5]} 25... a6 {[%clk 0:00:43.4]} 26. h4
{[%clk 0:00:17.7]} 26... b5 {[%clk 0:00:34.8]} 27. cxb5 {[%clk 0:00:14.4]} 27...
Qxc1 {[%clk 0:00:34.5]} 28. Rxc1 {[%clk 0:00:14.1]} 28... Rxc1+ {[%clk
0:00:34.8]} 29. Kg2 {[%clk 0:00:14.2]} 29... axb5 {[%clk 0:00:34.9]} 30. Qf4
{[%clk 0:00:11.4]} 30... Rcc8 {[%clk 0:00:28.1]} 31. g4 {[%clk 0:00:10.8]} 31...
Rf8 {[%clk 0:00:21.5]} 32. g5 {[%clk 0:00:09.7]} 32... Nd5 {[%clk 0:00:20.8]}
33. Qf3 {[%clk 0:00:08.8]} 33... hxg5 {[%clk 0:00:19.7]} 34. hxg5 {[%clk
0:00:08.8]} 34... b4 {[%clk 0:00:20.2]} 35. Qh5 {[%clk 0:00:06.9]} 35... b3
{[%clk 0:00:17.5]} 36. Kg3 {[%clk 0:00:01.4]} 36... Rc3+ {[%clk 0:00:16.5]} 0-1

[Event "Betsys MČR v online bleskovém šachu 2021"]
[Site "Chess.com"]
[Date "2021.04.17"]
[Round "1"]
[White "Svandik49"]
[Black "honzasoucek"]
[Result "1-0"]
[WhiteElo "2270"]
[BlackElo "1638"]
[TimeControl "180+1"]
[EndTime "9:07:58 PDT"]
[Termination "Uživatel Svandik49 zvítězil na čas"]

1. Nf3 {[%clk 0:02:51.8]} 1... Nf6 {[%clk 0:02:58.3]} 2. b3 {[%clk 0:02:51.8]}
2... e6 {[%clk 0:02:56.4]} 3. Bb2 {[%clk 0:02:51.8]} 3... Be7 {[%clk 0:02:56.7]}
4. g3 {[%clk 0:02:52.3]} 4... O-O {[%clk 0:02:56.5]} 5. Bg2 {[%clk 0:02:53.2]}
5... d5 {[%clk 0:02:53.1]} 6. O-O {[%clk 0:02:53.7]} 6... b6 {[%clk 0:02:50]} 7.
c4 {[%clk 0:02:50]} 7... Bb7 {[%clk 0:02:48.6]} 8. e3 {[%clk 0:02:44.7]} 8...
Nbd7 {[%clk 0:02:44.6]} 9. Qe2 {[%clk 0:02:41.7]} 9... c5 {[%clk 0:02:38.9]} 10.
Nc3 {[%clk 0:02:35.6]} 10... dxc4 {[%clk 0:02:15.5]} 11. bxc4 {[%clk 0:02:33.9]}
11... e5 {[%clk 0:02:13.3]} 12. e4 {[%clk 0:02:13.5]} 12... Qc7 {[%clk
0:02:02.3]} 13. Nd5 {[%clk 0:02:11.2]} 13... Qd6 {[%clk 0:01:52.4]} 14. d3
{[%clk 0:02:01.6]} 14... Rfe8 {[%clk 0:01:25.9]} 15. Bc3 {[%clk 0:01:47.2]}
15... Bf8 {[%clk 0:00:17]} 16. Qb2 {[%clk 0:01:46.1]} 16... Rad8 {[%clk
0:00:12.3]} 17. Rad1 {[%clk 0:01:29.5]} 17... Nxd5 {[%clk 0:00:09]} 18. exd5
{[%clk 0:01:27.4]} 18... g6 {[%clk 0:00:07.5]} 19. Rde1 {[%clk 0:01:22.9]} 19...
Bg7 {[%clk 0:00:07.4]} 20. Re2 {[%clk 0:01:21.3]} 20... Re7 {[%clk 0:00:05.4]}
21. Rfe1 {[%clk 0:01:20.2]} 21... Rde8 {[%clk 0:00:05.7]} 22. Bh3 {[%clk
0:01:14.1]} 22... f6 {[%clk 0:00:03.6]} 23. Be6+ {[%clk 0:01:03.9]} 23... Rxe6
{[%clk 0:00:03]} 24. dxe6 {[%clk 0:01:02.5]} 24... Qxe6 {[%clk 0:00:03.5]} 25.
Nd2 {[%clk 0:00:54]} 25... Qh3 {[%clk 0:00:03.4]} 26. f3 {[%clk 0:00:48.5]}
26... Qe6 {[%clk 0:00:01.8]} 27. Kg2 {[%clk 0:00:42.4]} 27... Qd6 {[%clk
0:00:01.6]} 28. Qc2 {[%clk 0:00:38.4]} 28... Nf8 {[%clk 0:00:01.9]} 29. Ne4
{[%clk 0:00:38.1]} 29... Qd7 {[%clk 0:00:01.5]} 30. Bb2 {[%clk 0:00:34.5]} 30...
Ne6 {[%clk 0:00:01.9]} 31. a4 {[%clk 0:00:23.7]} 31... Nd4 {[%clk 0:00:02.2]}
32. Bxd4 {[%clk 0:00:23.2]} 32... Qxd4 {[%clk 0:00:02.8]} 33. Qc3 {[%clk
0:00:22.5]} 33... Qd7 {[%clk 0:00:02.1]} 34. Qc2 {[%clk 0:00:21.2]} 34... Rd8
{[%clk 0:00:02.5]} 35. Rd1 {[%clk 0:00:19.3]} 35... Qd4 {[%clk 0:00:01.8]} 36.
Qc3 {[%clk 0:00:18.5]} 1-0

[Event "Betsys MČR v online bleskovém šachu 2021"]
[Site "Chess.com"]
[Date "2021.04.17"]
[Round "1"]
[White "matykov"]
[Black "Petulak08"]
[Result "1-0"]
[WhiteElo "2001"]
[BlackElo "1230"]
[TimeControl "180+1"]
[EndTime "9:07:58 PDT"]
[Termination "Uživatel matykov zvítězil na čas"]

1. e4 {[%clk 0:02:58.2]} 1... e6 {[%clk 0:02:58.1]} 2. d4 {[%clk 0:02:57.8]}
2... d5 {[%clk 0:02:57.8]} 3. Nc3 {[%clk 0:02:58.4]} 3... Bb4 {[%clk 0:02:53.6]}
4. e5 {[%clk 0:02:58.3]} 4... c5 {[%clk 0:02:52.8]} 5. a3 {[%clk 0:02:57.8]}
5... Bxc3+ {[%clk 0:02:51.6]} 6. bxc3 {[%clk 0:02:58]} 6... c4 {[%clk 0:02:52]}
7. Qg4 {[%clk 0:02:57.5]} 7... g6 {[%clk 0:02:46.7]} 8. f4 {[%clk 0:02:57.6]}
8... h5 {[%clk 0:02:43.8]} 9. Qd1 {[%clk 0:02:54.2]} 9... Nh6 {[%clk 0:02:43.6]}
10. Nf3 {[%clk 0:02:54]} 10... Bd7 {[%clk 0:02:31.7]} 11. Be2 {[%clk 0:02:53.4]}
11... Ba4 {[%clk 0:02:31.4]} 12. O-O {[%clk 0:02:52.6]} 12... Qa5 {[%clk
0:02:31.1]} 13. Bd2 {[%clk 0:02:51.1]} 13... Nd7 {[%clk 0:02:30.4]} 14. Rb1
{[%clk 0:02:49.9]} 14... Nb6 {[%clk 0:02:25.9]} 15. Qc1 {[%clk 0:02:49.8]} 15...
Nf5 {[%clk 0:02:22.4]} 16. Qb2 {[%clk 0:02:45.8]} 16... h4 {[%clk 0:02:16.5]}
17. Qb4 {[%clk 0:02:37.7]} 17... Qxb4 {[%clk 0:02:15.8]} 18. Rxb4 {[%clk
0:01:52.7]} 18... Bxc2 {[%clk 0:02:15.2]} 19. Rc1 {[%clk 0:01:49.2]} 19... Bb3
{[%clk 0:02:10.5]} 20. Bd1 {[%clk 0:01:45.7]} 20... Bxd1 {[%clk 0:02:02.3]} 21.
Rxd1 {[%clk 0:01:46.6]} 21... h3 {[%clk 0:02:00.1]} 22. a4 {[%clk 0:01:40.7]}
22... hxg2 {[%clk 0:01:57.2]} 23. a5 {[%clk 0:01:37.6]} 23... Nd7 {[%clk
0:01:29.1]} 24. Rxb7 {[%clk 0:01:37.4]} 24... Ng3 {[%clk 0:01:14.6]} 25. Kxg2
{[%clk 0:01:26.3]} 25... Ne4 {[%clk 0:01:09.6]} 26. Ng5 {[%clk 0:01:24]} 26...
Nxg5 {[%clk 0:01:00.2]} 27. fxg5 {[%clk 0:01:24.9]} 27... Rh5 {[%clk 0:01:00.4]}
28. Rdb1 {[%clk 0:01:13.3]} 28... Kd8 {[%clk 0:00:57.8]} 29. a6 {[%clk 0:00:54]}
29... Ke7 {[%clk 0:00:46.6]} 30. Rc7 {[%clk 0:00:52.1]} 30... Rah8 {[%clk
0:00:45.5]} 31. Bf4 {[%clk 0:00:45.6]} 31... Rh4 {[%clk 0:00:40.4]} 32. Bg3
{[%clk 0:00:45.6]} 32... Re4 {[%clk 0:00:25.1]} 33. Rbb7 {[%clk 0:00:42.4]}
33... Rd8 {[%clk 0:00:23.6]} 34. Kf3 {[%clk 0:00:39.6]} 34... Ke8 {[%clk
0:00:10.5]} 35. Rxa7 {[%clk 0:00:39.6]} 35... Nb6 {[%clk 0:00:08.3]} 36. Re7+
{[%clk 0:00:36.1]} 36... Kf8 {[%clk 0:00:08.4]} 37. Rxf7+ {[%clk 0:00:36.3]}
37... Kg8 {[%clk 0:00:07.5]} 38. Rg7+ {[%clk 0:00:36.5]} 38... Kf8 {[%clk
0:00:07.4]} 39. Raf7+ {[%clk 0:00:34.9]} 39... Ke8 {[%clk 0:00:06.8]} 40. Rb7
{[%clk 0:00:34.6]} 40... Kf8 {[%clk 0:00:06.7]} 41. Rgf7+ {[%clk 0:00:27.5]}
41... Ke8 {[%clk 0:00:06.3]} 42. Rh7 {[%clk 0:00:27.2]} 1-0

[Event "Betsys MČR v online bleskovém šachu 2021"]
[Site "Chess.com"]
[Date "2021.04.17"]
[Round "1"]
[White "Maty_2010"]
[Black "SajdlJosef"]
[Result "0-1"]
[WhiteElo "899"]
[BlackElo "1886"]
[TimeControl "180+1"]
[EndTime "9:07:59 PDT"]
[Termination "Uživatel SajdlJosef zvítězil na čas"]

1. e4 {[%clk 0:02:55.9]} 1... c6 {[%clk 0:02:58.8]} 2. Bc4 {[%clk 0:02:48.7]}
2... d5 {[%clk 0:02:59.7]} 3. exd5 {[%clk 0:02:48.4]} 3... cxd5 {[%clk
0:02:57.8]} 4. Bb5+ {[%clk 0:02:48.3]} 4... Nc6 {[%clk 0:02:55.2]} 5. Nf3 {[%clk
0:02:45.9]} 5... Nf6 {[%clk 0:02:54]} 6. Ne5 {[%clk 0:02:39.6]} 6... Qb6 {[%clk
0:02:50]} 7. Nc3 {[%clk 0:02:32]} 7... e6 {[%clk 0:02:45.3]} 8. O-O {[%clk
0:02:29]} 8... Bd6 {[%clk 0:02:37.1]} 9. d4 {[%clk 0:02:19.6]} 9... O-O {[%clk
0:02:33.8]} 10. Be3 {[%clk 0:02:04.8]} 10... Nd7 {[%clk 0:02:06.8]} 11. Qh5
{[%clk 0:01:43]} 11... Ncxe5 {[%clk 0:01:45.7]} 12. dxe5 {[%clk 0:01:39.9]}
12... Bc5 {[%clk 0:01:34.4]} 13. Bxc5 {[%clk 0:01:30]} 13... Nxc5 {[%clk
0:01:31.1]} 14. b4 {[%clk 0:01:20]} 14... Ne4 {[%clk 0:01:21.5]} 15. Bd3 {[%clk
0:01:08.7]} 15... g6 {[%clk 0:01:15]} 16. Qh4 {[%clk 0:00:50.1]} 16... Nxc3
{[%clk 0:01:09.2]} 17. Rab1 {[%clk 0:00:40.1]} 17... Nxb1 {[%clk 0:01:06.9]} 18.
Rxb1 {[%clk 0:00:40.7]} 18... Bd7 {[%clk 0:01:06.1]} 19. b5 {[%clk 0:00:35.6]}
19... a6 {[%clk 0:00:59.9]} 20. a4 {[%clk 0:00:27.9]} 20... axb5 {[%clk
0:00:54.9]} 21. axb5 {[%clk 0:00:27.6]} 21... Qc7 {[%clk 0:00:47.7]} 22. h3
{[%clk 0:00:19.7]} 22... Qxe5 {[%clk 0:00:45.1]} 23. c3 {[%clk 0:00:15.5]} 23...
Qxc3 {[%clk 0:00:39.1]} 24. Be2 {[%clk 0:00:14.4]} 24... Ra1 {[%clk 0:00:36.6]}
25. Rxa1 {[%clk 0:00:13.9]} 25... Qxa1+ {[%clk 0:00:34.9]} 26. Kh2 {[%clk
0:00:14]} 26... Qe5+ {[%clk 0:00:33]} 27. Kg1 {[%clk 0:00:12.6]} 27... Qxe2
{[%clk 0:00:31.7]} 28. g3 {[%clk 0:00:10.6]} 28... Bxb5 {[%clk 0:00:30.6]} 29.
Qb4 {[%clk 0:00:08.2]} 29... Rc8 {[%clk 0:00:27.5]} 30. h4 {[%clk 0:00:07]}
30... Rc1+ {[%clk 0:00:17.8]} 31. Kg2 {[%clk 0:00:05.3]} 31... Qf1+ {[%clk
0:00:14.6]} 32. Kf3 {[%clk 0:00:04.3]} 32... Be2+ {[%clk 0:00:06.6]} 0-1

[Event "Betsys MČR v online bleskovém šachu 2021"]
[Site "Chess.com"]
[Date "2021.04.17"]
[Round "1"]
[White "Paulz64"]
[Black "Mimochodem"]
[Result "1-0"]
[WhiteElo "2514"]
[BlackElo "1787"]
[TimeControl "180+1"]
[EndTime "9:08:00 PDT"]
[Termination "Uživatel Paulz64 zvítězil matem"]

1. d4 {[%clk 0:03:00]} 1... d5 {[%clk 0:02:57.4]} 2. c4 {[%clk 0:02:59.8]} 2...
c5 {[%clk 0:02:57.3]} 3. cxd5 {[%clk 0:02:59.2]} 3... Qxd5 {[%clk 0:02:56.1]} 4.
e3 {[%clk 0:02:58.3]} 4... cxd4 {[%clk 0:02:55.9]} 5. Nc3 {[%clk 0:02:58.6]}
5... Qd8 {[%clk 0:02:54.5]} 6. exd4 {[%clk 0:02:58.3]} 6... Nf6 {[%clk
0:02:54.3]} 7. Bc4 {[%clk 0:02:58]} 7... e6 {[%clk 0:02:54.4]} 8. Nf3 {[%clk
0:02:57.6]} 8... Bb4 {[%clk 0:02:54.5]} 9. O-O {[%clk 0:02:56.9]} 9... h6 {[%clk
0:02:53.9]} 10. Qe2 {[%clk 0:02:56.8]} 10... O-O {[%clk 0:02:53.8]} 11. Rd1
{[%clk 0:02:56.9]} 11... Bxc3 {[%clk 0:02:52.9]} 12. bxc3 {[%clk 0:02:56.4]}
12... Nc6 {[%clk 0:02:53.2]} 13. Bd3 {[%clk 0:02:49.1]} 13... Re8 {[%clk
0:02:49.8]} 14. c4 {[%clk 0:02:41.2]} 14... Qa5 {[%clk 0:02:48.7]} 15. Bb2
{[%clk 0:02:30.1]} 15... Bd7 {[%clk 0:02:40.6]} 16. Ne5 {[%clk 0:02:29.6]} 16...
Rad8 {[%clk 0:02:29.2]} 17. Qf3 {[%clk 0:02:14.3]} 17... Nxe5 {[%clk 0:02:13.1]}
18. dxe5 {[%clk 0:02:14.1]} 18... Bc6 {[%clk 0:02:13.6]} 19. Qg3 {[%clk
0:01:51.6]} 19... Ne4 {[%clk 0:02:03.1]} 20. Qe3 {[%clk 0:01:47.8]} 20... Nc5
{[%clk 0:01:56.2]} 21. Bc2 {[%clk 0:01:43.7]} 21... Na4 {[%clk 0:01:32.8]} 22.
Bd4 {[%clk 0:01:33]} 22... Nb6 {[%clk 0:01:10.3]} 23. Qd3 {[%clk 0:01:14.7]}
23... g6 {[%clk 0:01:00.5]} 24. Qg3 {[%clk 0:01:01]} 24... Kh7 {[%clk 0:00:58]}
25. h4 {[%clk 0:00:49.9]} 25... Nxc4 {[%clk 0:00:56.1]} 26. h5 {[%clk
0:00:49.7]} 26... Rg8 {[%clk 0:00:54.5]} 27. Qf4 {[%clk 0:00:30.9]} 27... Qd5
{[%clk 0:00:53.2]} 28. f3 {[%clk 0:00:18.6]} 28... Rg7 {[%clk 0:00:53.2]} 29.
Bc3 {[%clk 0:00:17]} 29... Qc5+ {[%clk 0:00:51.1]} 30. Kh2 {[%clk 0:00:15.4]}
30... Rxd1 {[%clk 0:00:48.8]} 31. Rxd1 {[%clk 0:00:15.4]} 31... Nxe5 {[%clk
0:00:46.3]} 32. Qxe5 {[%clk 0:00:13.9]} 32... Qxe5+ {[%clk 0:00:42.9]} 33. Bxe5
{[%clk 0:00:14]} 33... a6 {[%clk 0:00:43.4]} 34. Bxg7 {[%clk 0:00:13.4]} 34...
Kxg7 {[%clk 0:00:44]} 35. hxg6 {[%clk 0:00:14.2]} 35... fxg6 {[%clk 0:00:42.7]}
36. Kg3 {[%clk 0:00:15.1]} 36... Kf6 {[%clk 0:00:43]} 37. Kf4 {[%clk 0:00:15.3]}
37... Bd5 {[%clk 0:00:43.5]} 38. Ke3 {[%clk 0:00:16.2]} 38... Bxa2 {[%clk
0:00:43.4]} 39. Be4 {[%clk 0:00:16.3]} 39... b6 {[%clk 0:00:43]} 40. Rd6 {[%clk
0:00:15.9]} 40... Bc4 {[%clk 0:00:42]} 41. Rxb6 {[%clk 0:00:15.7]} 41... Ke5
{[%clk 0:00:42.2]} 42. Rc6 {[%clk 0:00:14.9]} 42... Bb5 {[%clk 0:00:41.8]} 43.
Rc8 {[%clk 0:00:15.4]} 43... g5 {[%clk 0:00:40.5]} 44. g3 {[%clk 0:00:15.3]}
44... Bd7 {[%clk 0:00:39.7]} 45. Ra8 {[%clk 0:00:14.6]} 45... Bb5 {[%clk
0:00:39.2]} 46. f4+ {[%clk 0:00:14.7]} 46... gxf4+ {[%clk 0:00:38.7]} 47. gxf4+
{[%clk 0:00:15.6]} 47... Kd6 {[%clk 0:00:38.3]} 48. Rh8 {[%clk 0:00:15.8]} 48...
a5 {[%clk 0:00:35.6]} 49. Rxh6 {[%clk 0:00:14.6]} 49... a4 {[%clk 0:00:35.8]}
50. f5 {[%clk 0:00:14.9]} 50... Ke5 {[%clk 0:00:34.1]} 51. Rxe6# {[%clk
0:00:13.7]} 1-0

[Event "Betsys MČR v online bleskovém šachu 2021"]
[Site "Chess.com"]
[Date "2021.04.17"]
[Round "1"]
[White "Bagr92"]
[Black "marecek1754"]
[Result "0-1"]
[WhiteElo "1595"]
[BlackElo "2213"]
[TimeControl "180+1"]
[EndTime "9:08:00 PDT"]
[Termination "Uživatel marecek1754 zvítězil na čas"]

1. e4 {[%clk 0:02:59.4]} 1... e5 {[%clk 0:02:59.2]} 2. Nc3 {[%clk 0:02:54.1]}
2... Nf6 {[%clk 0:02:58.1]} 3. f4 {[%clk 0:02:54.7]} 3... d5 {[%clk 0:02:57.5]}
4. fxe5 {[%clk 0:02:54.2]} 4... Nxe4 {[%clk 0:02:57.5]} 5. Qf3 {[%clk
0:02:54.9]} 5... Nxc3 {[%clk 0:02:56.6]} 6. bxc3 {[%clk 0:02:55.8]} 6... c5
{[%clk 0:02:55.7]} 7. d4 {[%clk 0:02:56]} 7... c4 {[%clk 0:02:55]} 8. Ne2 {[%clk
0:02:52.4]} 8... Be6 {[%clk 0:02:49]} 9. Rb1 {[%clk 0:02:51.7]} 9... Qd7 {[%clk
0:02:46.7]} 10. g3 {[%clk 0:02:48.7]} 10... Nc6 {[%clk 0:02:45.1]} 11. Bg2
{[%clk 0:02:47.8]} 11... O-O-O {[%clk 0:02:45.2]} 12. O-O {[%clk 0:02:46.7]}
12... h6 {[%clk 0:02:34.4]} 13. Nf4 {[%clk 0:02:39.2]} 13... g5 {[%clk
0:02:33.9]} 14. Nxe6 {[%clk 0:02:38.8]} 14... fxe6 {[%clk 0:02:34.1]} 15. a4
{[%clk 0:02:32.6]} 15... Be7 {[%clk 0:02:22.6]} 16. Bd2 {[%clk 0:02:17.1]} 16...
h5 {[%clk 0:02:22.3]} 17. g4 {[%clk 0:02:00.9]} 17... Rdf8 {[%clk 0:02:11.3]}
18. Qg3 {[%clk 0:01:57.8]} 18... h4 {[%clk 0:02:07.5]} 19. Qe3 {[%clk
0:01:50.9]} 19... Qe8 {[%clk 0:02:04.6]} 20. Qe2 {[%clk 0:01:33.8]} 20... Rxf1+
{[%clk 0:01:58.8]} 21. Rxf1 {[%clk 0:01:30.1]} 21... Rf8 {[%clk 0:01:55.2]} 22.
Be3 {[%clk 0:01:26.8]} 22... Rf7 {[%clk 0:01:47.5]} 23. Qd2 {[%clk 0:01:24.4]}
23... Rxf1+ {[%clk 0:01:43.9]} 24. Bxf1 {[%clk 0:01:19.9]} 24... a6 {[%clk
0:01:28.9]} 25. Bxg5 {[%clk 0:01:09.8]} 25... Qg6 {[%clk 0:01:28.5]} 26. Bxe7
{[%clk 0:01:04]} 26... Qxg4+ {[%clk 0:01:27]} 27. Kh1 {[%clk 0:01:04]} 27...
Nxe7 {[%clk 0:01:25]} 28. Bg2 {[%clk 0:00:48.8]} 28... h3 {[%clk 0:01:20]} 29.
Bf1 {[%clk 0:00:44.3]} 29... Nf5 {[%clk 0:01:17.7]} 30. Qf2 {[%clk 0:00:43]}
30... Nh4 {[%clk 0:00:45.1]} 31. Qg3 {[%clk 0:00:30.7]} 31... Qe4+ {[%clk
0:00:43.4]} 32. Kg1 {[%clk 0:00:30.1]} 32... Nf3+ {[%clk 0:00:39.6]} 33. Kf2
{[%clk 0:00:29.9]} 33... Nd2 {[%clk 0:00:31.8]} 34. Bxh3 {[%clk 0:00:13.7]}
34... Qxc2 {[%clk 0:00:29.2]} 35. Bxe6+ {[%clk 0:00:10.3]} 35... Kb8 {[%clk
0:00:29.4]} 36. Qg8+ {[%clk 0:00:09.7]} 36... Ka7 {[%clk 0:00:29.4]} 37. Bxd5
{[%clk 0:00:07.7]} 37... Qxc3 {[%clk 0:00:27]} 38. e6 {[%clk 0:00:06.8]} 38...
Qxd4+ {[%clk 0:00:27.2]} 39. Kg3 {[%clk 0:00:05.9]} 39... Qxd5 {[%clk
0:00:27.4]} 40. Qf7 {[%clk 0:00:03.3]} 40... Ne4+ {[%clk 0:00:26.8]} 0-1

[Event "Betsys MČR v online bleskovém šachu 2021"]
[Site "Chess.com"]
[Date "2021.04.17"]
[Round "1"]
[White "PetrVelicka"]
[Black "TarantAnk"]
[Result "1-0"]
[WhiteElo "2382"]
[BlackElo "1730"]
[TimeControl "180+1"]
[EndTime "9:08:01 PDT"]
[Termination "Uživatel PetrVelicka zvítězil po vzdání soupeře"]

1. e4 {[%clk 0:02:59.4]} 1... c5 {[%clk 0:02:57.9]} 2. Nf3 {[%clk 0:02:58.7]}
2... d6 {[%clk 0:02:58.3]} 3. d4 {[%clk 0:02:58.5]} 3... cxd4 {[%clk 0:02:58.2]}
4. Nxd4 {[%clk 0:02:56.7]} 4... Nc6 {[%clk 0:02:59.1]} 5. c4 {[%clk 0:02:54.6]}
5... Nf6 {[%clk 0:02:58.4]} 6. Nc3 {[%clk 0:02:54.1]} 6... g6 {[%clk 0:02:58.3]}
7. Be2 {[%clk 0:02:53.5]} 7... Bg7 {[%clk 0:02:58.7]} 8. Be3 {[%clk 0:02:53.5]}
8... O-O {[%clk 0:02:58.3]} 9. O-O {[%clk 0:02:50.4]} 9... Nd7 {[%clk
0:02:57.7]} 10. Qd2 {[%clk 0:02:45.1]} 10... a6 {[%clk 0:02:52.8]} 11. Rac1
{[%clk 0:02:39.4]} 11... Nde5 {[%clk 0:02:50.2]} 12. Rfd1 {[%clk 0:02:25.8]}
12... Ng4 {[%clk 0:02:46.8]} 13. Bxg4 {[%clk 0:02:24.1]} 13... Bxg4 {[%clk
0:02:46.3]} 14. f3 {[%clk 0:02:23.9]} 14... Bd7 {[%clk 0:02:45.7]} 15. Nd5
{[%clk 0:02:14]} 15... Rb8 {[%clk 0:02:36.6]} 16. b3 {[%clk 0:02:11.3]} 16...
Ne5 {[%clk 0:02:31.2]} 17. a4 {[%clk 0:02:00.8]} 17... Bc6 {[%clk 0:02:27.7]}
18. Nc3 {[%clk 0:01:51.1]} 18... Rc8 {[%clk 0:02:20.6]} 19. Nde2 {[%clk
0:01:47.4]} 19... b5 {[%clk 0:02:13.9]} 20. axb5 {[%clk 0:01:45.4]} 20... axb5
{[%clk 0:02:14]} 21. Nxb5 {[%clk 0:01:44.6]} 21... Bxb5 {[%clk 0:02:13.8]} 22.
cxb5 {[%clk 0:01:44.6]} 22... Nd7 {[%clk 0:02:07.2]} 23. Nd4 {[%clk 0:01:39.3]}
23... Nc5 {[%clk 0:02:03.2]} 24. b4 {[%clk 0:01:35.7]} 24... Nd7 {[%clk
0:01:59.8]} 25. Nc6 {[%clk 0:01:34.1]} 25... Qe8 {[%clk 0:01:56.4]} 26. b6
{[%clk 0:01:31.6]} 26... Nxb6 {[%clk 0:01:50.4]} 27. Nxe7+ {[%clk 0:01:25.9]}
27... Qxe7 {[%clk 0:01:48.8]} 28. Bxb6 {[%clk 0:01:25.7]} 28... Rxc1 {[%clk
0:01:48.2]} 29. Rxc1 {[%clk 0:01:24.9]} 29... Be5 {[%clk 0:01:43.8]} 30. Bd4
{[%clk 0:01:06.8]} 30... Rb8 {[%clk 0:01:36.3]} 31. Rb1 {[%clk 0:01:00.9]} 31...
Qc7 {[%clk 0:01:25.6]} 32. b5 {[%clk 0:00:51.5]} 32... Qc4 {[%clk 0:01:15.5]}
33. Bxe5 {[%clk 0:00:38.9]} 33... dxe5 {[%clk 0:01:15.4]} 34. Qb4 {[%clk
0:00:32.5]} 34... Qd3 {[%clk 0:01:09.9]} 35. b6 {[%clk 0:00:31.7]} 35... Kg7
{[%clk 0:01:02.6]} 36. b7 {[%clk 0:00:29.4]} 36... Qd7 {[%clk 0:01:01.8]} 37. h3
{[%clk 0:00:28.1]} 37... h5 {[%clk 0:01:00.9]} 38. Qb5 {[%clk 0:00:27.4]} 38...
Qc7 {[%clk 0:01:00.5]} 39. Kh1 {[%clk 0:00:25.5]} 39... Kf6 {[%clk 0:00:59.1]}
40. Qd5 {[%clk 0:00:25.3]} 40... Ke7 {[%clk 0:00:56.3]} 41. Kh2 {[%clk 0:00:23]}
41... Qd6 {[%clk 0:00:56]} 42. Rb5 {[%clk 0:00:21.4]} 42... Qxd5 {[%clk
0:00:53.6]} 43. Rxd5 {[%clk 0:00:21.8]} 43... f6 {[%clk 0:00:54]} 44. Rb5 {[%clk
0:00:21.4]} 44... Kd6 {[%clk 0:00:53.6]} 45. Rb6+ {[%clk 0:00:21.6]} 45... Ke7
{[%clk 0:00:53.2]} 46. h4 {[%clk 0:00:20.1]} 46... Kf7 {[%clk 0:00:48.8]} 47.
Kg1 {[%clk 0:00:18.8]} 47... Ke7 {[%clk 0:00:48.8]} 48. Kf2 {[%clk 0:00:19.3]}
48... g5 {[%clk 0:00:47.6]} 49. hxg5 {[%clk 0:00:17.6]} 49... fxg5 {[%clk
0:00:47.6]} 50. Rg6 {[%clk 0:00:18]} 50... g4 {[%clk 0:00:45]} 51. fxg4 {[%clk
0:00:16.7]} 51... hxg4 {[%clk 0:00:44.9]} 52. Rxg4 {[%clk 0:00:16.8]} 52... Rxb7
{[%clk 0:00:45.3]} 53. Rg7+ {[%clk 0:00:16.5]} 53... Kd6 {[%clk 0:00:42.2]} 54.
Rxb7 {[%clk 0:00:17.4]} 1-0